fUST/lending_fUST_20241201
["ID","MTS","AMOUNT","RATE_DAILY","PERIOD"]
[343911170,1733049038280,-500.0,0.00024599,2]
[343911171,1733049038289,-188.50512282,0.00024599,2]
[343911172,1733049038300,-334.44206776,0.000246,2]
[343911173,1733049038310,-28386.36088887,0.000246,2]
[343911181,1733049040007,-1226.61,0.000246,2]
[343911182,1733049040019,-6867.47872429,0.000246,2]
[343911199,1733049043041,-9408.14219418,0.000246,2]
[343911200,1733049043056,-177.904759,0.00025134,2]
[343911201,1733049043065,-5471.53833592,0.00025193,2]
[343911212,1733049560797,165.797671,0.00013973,2]
[343911214,1733049691891,2702.48,0.00026,60]
[343911215,1733049718285,1656.0,0.00026,60]
[343911216,1733049728361,1010.0,0.00026,120]
[343911217,1733049938117,-150.3,0.000198,2]
[343911218,1733049938137,-1169.27083333,0.0002,2]
[343911219,1733049938160,-190.13113096,0.00020347,2]
[343911220,1733049938181,-165.797671,0.00020447,2]
[343911221,1733049938203,-2021.01791111,0.00025,2]
[343911222,1733049938223,-163.807054,0.00025553,2]
[343911223,1733049938244,-536.208106,0.00025625,2]
[343911224,1733049938263,-940.3509116,0.0002563,2]
[343911225,1733049938282,-153.0,0.00025851,2]
[343911226,1733049938302,-190.13113096,0.000259,2]
[343911227,1733049938324,-1769.81915164,0.00026,30]
[343911228,1733049938343,-305.1914094,0.00026,2]
[343911229,1733049938363,-305.1914094,0.00026,2]
[343911230,1733049938383,-152.5957047,0.00026192,2]
[343911231,1733049938403,-300.0,0.00026574,2]
[343911232,1733049938423,-426.0845422,0.000266,2]
[343911233,1733049938443,-806.86002992,0.000269,2]
[343911234,1733049938462,-359.37410643,0.000269,2]
[343911235,1733049938484,-165.797671,0.00026921,2]
[343911236,1733049938505,-180.05398093,0.00026973,2]
[343911237,1733049938528,-391.15476317,0.00026973,2]
[343911238,1733049938549,-568.48,0.0002699,10]
[343911239,1733049938572,-723.87,0.0002699,10]
[343911240,1733049938592,-401.2,0.0002699,3]
[343911241,1733049938614,-603.22,0.0002699,10]
[343911242,1733049938635,-575.06,0.0002699,3]
[343911243,1733049938656,-287.53,0.0002699,3]
[343911244,1733049938677,-502.68,0.0002699,10]
[343911245,1733049938698,-5000.0,0.00026998,2]
[343911246,1733049938720,-2920.52101342,0.00026998,2]
[343911247,1733049938742,-564.79288789,0.00026999,2]
[343911248,1733049938762,-178.20324595,0.00026999,2]
[343911249,1733049938783,-500.0,0.00026999,2]
[343911250,1733049938803,-187.61168031,0.00026999,2]
[343911251,1733049938824,-500.0,0.00026999,2]
[343911252,1733049938844,-500.0,0.00026999,2]
[343911253,1733049938865,-500.0,0.00026999,2]
[343911254,1733049938886,-500.0,0.00026999,2]
[343911255,1733049938905,-345.87223378,0.00026999,2]
[343911256,1733049938924,-500.0,0.00026999,2]
[343911257,1733049938947,-500.0,0.00026999,2]
[343911258,1733049938968,-500.0,0.00026999,2]
[343911259,1733049938989,-500.0,0.00026999,2]
[343911260,1733049939009,-500.0,0.00026999,2]
[343911261,1733049939031,-500.0,0.00026999,2]
[343911262,1733049939053,-500.0,0.00026999,2]
[343911263,1733049939074,-500.0,0.00026999,2]
[343911264,1733049939095,-500.0,0.00026999,2]
[343911265,1733049939120,-500.0,0.00026999,2]
[343911266,1733049939142,-500.0,0.00026999,2]
[343911267,1733049939164,-500.0,0.00026999,2]
[343911268,1733049939186,-500.0,0.00026999,2]
[343911269,1733049939208,-500.0,0.00026999,2]
[343911270,1733049939229,-500.0,0.00026999,2]
[343911271,1733049939250,-500.0,0.00026999,2]
[343911272,1733049939272,-166.22795991,0.00026999,2]
[343911273,1733049939294,-500.0,0.00026999,2]
[343911274,1733049939316,-500.0,0.00026999,2]
[343911275,1733049939337,-165.25256419,0.00026999,2]
[343911276,1733049939358,-500.0,0.00026999,2]
[343911277,1733049939380,-500.0,0.00026999,2]
[343911278,1733049939400,-500.0,0.00026999,2]
[343911279,1733049939420,-308.19443868,0.00026999,2]
[343911280,1733049955102,-1169.27083333,0.0002,2]
[343911281,1733049955126,-862.59,0.0002699,3]
[343911282,1733049955147,-418.9,0.0002699,10]
[343911283,1733049955169,-281.05258485,0.00026999,2]
[343911284,1733049955192,-500.0,0.00026999,2]
[343911285,1733049955214,-500.0,0.00026999,2]
[343911286,1733049955236,-500.0,0.00026999,2]
[343911287,1733049955256,-500.0,0.00026999,2]
[343911288,1733049955279,-500.0,0.00026999,2]
[343911289,1733049955301,-500.0,0.00026999,2]
[343911290,1733049955326,-500.0,0.00026999,2]
[343911291,1733049955347,-500.0,0.00026999,2]
[343911292,1733049955368,-500.0,0.00026999,2]
[343911293,1733049955390,-500.0,0.00026999,2]
[343911294,1733049955411,-500.0,0.00026999,2]
[343911295,1733049955433,-500.0,0.00026999,2]
[343911296,1733049955457,-500.0,0.00026999,2]
[343911297,1733049955481,-500.0,0.00026999,2]
[343911298,1733049955502,-500.0,0.00026999,2]
[343911299,1733049955524,-540.29659321,0.00026999,2]
[343911300,1733049955546,-2330.04877612,0.00027,2]
[343911301,1733049955568,-136346.56523249,0.00027,5]
[343911302,1733050032091,-1106.76581814,0.000269,2]
[343911303,1733050032115,-1169.27083333,0.000269,2]
[343911304,1733050032142,-349.09,0.0002699,10]
[343911305,1733050032164,-290.91,0.0002699,10]
[343911306,1733050032187,-242.42,0.0002699,10]
[343911307,1733050032211,-202.02,0.0002699,10]
[343911308,1733050032234,-105107.72801733,0.00027,5]
[343911309,1733050035343,-339686.695449,0.00027,5]
[343911310,1733050051140,-150.3,0.0002699,10]
[343911347,1733050232071,-424.99996,0.0002414,2]
[343911355,1733050232309,-744.27087333,0.0002414,2]
[343911356,1733050232319,-968.42009082,0.000269,2]
[343911357,1733050232328,-191.68,0.0002699,3]
[343911358,1733050232338,-575.08,0.0002699,3]
[343911359,1733050232347,-859.81,0.0002699,10]
[343911360,1733050232357,-231.14223335,0.00026999,2]
[343911361,1733050232370,-134.50276114,0.00026999,2]
[343911368,1733050238306,-129.15096074,0.00026999,2]
[343911369,1733050238316,-399.33624334,0.00026999,2]
[343911370,1733050238325,-184.99428889,0.00026999,2]
[343911371,1733050238335,-232.13855817,0.00026999,2]
[343911372,1733050238344,-500.0,0.00026999,2]
[343911373,1733050238353,-351.69472935,0.00026999,2]
[343911374,1733050238362,-393.36628814,0.00026999,2]
[343911375,1733050238372,-1165.02438806,0.00027,2]
[343911376,1733050238383,-376.52859192,0.00027,2]
[343911377,1733050238392,-47774.51171804,0.00027,5]
[343911378,1733050238404,-236798.26849219,0.00027,5]
[343911379,1733050238592,-16605.41378,0.00027,5]
[343911387,1733050240145,-9745.89162594,0.00027,5]
[343911388,1733050240220,-12052.02274098,0.00027,5]
[343911389,1733050240233,-8299.7803487,0.00027,5]
[343911390,1733050240245,-3367.03604392,0.00027,5]
[343911408,1733050243104,-749.85245642,0.00027,5]
[343911409,1733050243136,-33687.74995523,0.00027,5]
[343911410,1733050243721,-4709.31915365,0.00027,5]
[343911411,1733050243734,-2495.14587938,0.00027,5]
[343911432,1733050246042,-4383.82809,0.00027,5]
[343911433,1733050246097,-37742.966161,0.00027,5]
[343911434,1733050246108,-4038.61,0.00027,5]
[343911436,1733050250468,166.014855,0.00013973,2]
[343911437,1733050377988,500.03,0.00015,2]
[343911451,1733050714780,996.36310109,0.00026,60]
[343911453,1733050858527,165.915101,0.00013973,2]
[343911502,1733051142143,-307.67234768,0.000198,2]
[343911503,1733051142165,-1169.27083333,0.0002,2]
[343911504,1733051142186,-165.915101,0.00021209,2]
[343911505,1733051142207,-2246.923,0.00025794,2]
[343911506,1733051142228,-2377.0,0.00025794,2]
[343911507,1733051142249,-8826.44767862,0.00026103,2]
[343911508,1733051142270,-8826.44767862,0.0002653,2]
[343911509,1733051142292,-847.36757952,0.00026662,2]
[343911510,1733051142313,-14221.47803751,0.00026762,2]
[343911511,1733051142336,-576.7655419,0.00026797,2]
[343911512,1733051142357,-8826.44767862,0.00026797,2]
[343911513,1733051142378,-50331.71037622,0.00026899,2]
[343911514,1733051217108,-307.67234768,0.000198,2]
[343911515,1733051229111,-1169.27083333,0.0002,2]
[343911516,1733051229132,-1622.0921465,0.00025806,11]
[343911517,1733051229279,-8826.44767862,0.00026639,2]
[343911518,1733051229301,-7128.45221455,0.00026899,2]
[343911564,1733051432394,-1169.27083333,0.0002,2]
[343911565,1733051432404,-741.44663208,0.000268,2]
[343911566,1733051432415,-11223.82964339,0.00026899,2]
[343911573,1733051432519,-25795.54153562,0.00026899,2]
[343911577,1733051432536,-775.696,0.00026899,2]
[343911651,1733051443525,-34888.9484007,0.00026899,2]
[343911652,1733051443537,-38404.19599452,0.00026899,2]
[343911653,1733051443547,-384.51036127,0.000269,2]
[343911654,1733051443558,-29633.53411185,0.000269,2]
[343911655,1733051443568,-13269.84980575,0.000269,2]
[343911656,1733051443577,-457.7871141,0.000269,2]
[343911657,1733051443588,-500.69762926,0.00026973,2]
[343911658,1733051443598,-1133.46658,0.0002699,5]
[343911659,1733051443609,-159.73,0.0002699,3]
[343911660,1733051443620,-479.23,0.0002699,3]
[343911661,1733051443630,-170.78253416,0.00026999,2]
[343911662,1733051443640,-7105.23899104,0.00026999,2]
[343911663,1733051443650,-307.37966801,0.00026999,2]
[343911664,1733051443661,-500.0,0.00026999,2]
[343911665,1733051443670,-500.0,0.00026999,2]
[343911666,1733051443680,-602.78815799,0.00026999,2]
[343911667,1733051443691,-438.58096904,0.00026999,2]
[343911668,1733051443701,-500.0,0.00026999,2]
[343911669,1733051443710,-221.92367024,0.00026999,2]
[343911670,1733051443720,-2930.99310132,0.00027,2]
[343911671,1733051443729,-218211.60468764,0.00027,5]
[343911678,1733051446417,-18439.1744909,0.00027,5]
[343911679,1733051446434,-26639.90977822,0.00027,5]
[343911680,1733051446484,-2082.918097,0.00027,5]
[343911684,1733051582267,165.820888,0.00013973,2]
[343911747,1733052632547,-1169.27083333,0.0002,2]
[343911749,1733052632557,-165.820888,0.00021209,2]
[343911751,1733052632566,-8250.05227901,0.00025921,2]
[343911753,1733052632575,-3006.0,0.00026074,2]
[343911755,1733052632584,-300.0,0.00026075,2]
[343911757,1733052632594,-8250.05227901,0.00026077,2]
[343911759,1733052632604,-150.0,0.00026204,2]
[343911761,1733052632615,-8250.05227901,0.00026328,2]
[343911763,1733052632624,-176.88001289,0.0002639,2]
[343911765,1733052632634,-1588.77214861,0.000268,2]
[343911767,1733052632643,-8250.05227903,0.00026807,2]
[343911769,1733052632652,-8294.31059491,0.000269,2]
[343911771,1733052632662,-4616.25354675,0.000269,2]
[343911773,1733052632671,-473.50456125,0.000269,2]
[343911775,1733052632680,-374.04,0.0002699,3]
[343911777,1733052632689,-187.02,0.0002699,3]
[343911779,1733052632698,-561.11,0.0002699,3]
[343911781,1733052632707,-500.0,0.00026993,2]
[343911783,1733052632716,-500.0,0.00026993,2]
[343911785,1733052632726,-500.0,0.00026993,2]
[343911787,1733052632735,-500.0,0.00026993,2]
[343911802,1733052632748,-500.0,0.00026993,2]
[343911804,1733052632852,-500.0,0.00026993,2]
[343911806,1733052632862,-511.73981336,0.00026993,2]
[343911808,1733052632871,-500.0,0.00026993,2]
[343911810,1733052632881,-500.0,0.00026993,2]
[343911812,1733052632890,-500.0,0.00026993,2]
[343911814,1733052632899,-500.0,0.00026993,2]
[343911816,1733052632908,-500.0,0.00026993,2]
[343911818,1733052632918,-500.0,0.00026993,2]
[343911820,1733052632927,-500.0,0.00026993,2]
[343911822,1733052632936,-157.11062373,0.00026993,2]
[343911824,1733052632945,-500.0,0.00026993,2]
[343911826,1733052632955,-500.0,0.00026993,2]
[343911828,1733052632964,-457.4978348,0.00026993,2]
[343911830,1733052632974,-500.0,0.00026993,2]
[343911832,1733052632983,-500.0,0.00026993,2]
[343911835,1733052632994,-500.0,0.00026993,2]
[343911837,1733052633004,-500.0,0.00026993,2]
[343911839,1733052633014,-500.0,0.00026993,2]
[343911841,1733052633028,-500.0,0.00026993,2]
[343911842,1733052633044,-500.0,0.00026993,2]
[343911845,1733052633056,-500.0,0.00026993,2]
[343911847,1733052633066,-500.0,0.00026993,2]
[343911849,1733052633076,-500.0,0.00026993,2]
[343911851,1733052633086,-500.0,0.00026993,2]
[343911853,1733052633095,-500.0,0.00026993,2]
[343911855,1733052633105,-500.0,0.00026993,2]
[343911856,1733052633115,-157.23017259,0.00026993,2]
[343911859,1733052633125,-500.0,0.00026993,2]
[343911861,1733052633134,-500.0,0.00026993,2]
[343911863,1733052633144,-500.0,0.00026993,2]
[343911865,1733052633154,-500.0,0.00026993,2]
[343911867,1733052633163,-500.0,0.00026993,2]
[343911869,1733052633173,-500.0,0.00026993,2]
[343911870,1733052633182,-500.0,0.00026993,2]
[343911872,1733052633192,-500.0,0.00026993,2]
[343911874,1733052633203,-500.0,0.00026993,2]
[343911877,1733052633213,-500.0,0.00026993,2]
[343911878,1733052633223,-500.0,0.00026993,2]
[343911880,1733052633234,-500.0,0.00026993,2]
[343911883,1733052633245,-500.0,0.00026993,2]
[343911884,1733052633255,-306.64962664,0.00026993,2]
[343911885,1733052633265,-500.0,0.00026993,2]
[343911886,1733052633276,-500.0,0.00026993,2]
[343911887,1733052633286,-500.0,0.00026993,2]
[343911888,1733052633296,-500.0,0.00026993,2]
[343911889,1733052633305,-500.0,0.00026993,2]
[343911890,1733052633315,-500.0,0.00026993,2]
[343911891,1733052633326,-150.01,0.00026999,2]
[343911892,1733052633335,-14755.89865284,0.00027,2]
[343911893,1733052633344,-122112.52917904,0.00027,5]
[343911894,1733052633369,-500.0,0.00026993,2]
[343911895,1733052633380,-500.0,0.00026993,2]
[343911896,1733052633390,-4465.66825,0.00027,5]
[343911897,1733052633401,-50941.55420196,0.00027,5]
[343912076,1733052638600,-500.0,0.00026993,2]
[343912077,1733052638611,-500.0,0.00026993,2]
[343912078,1733052638620,-14931.99521802,0.00027,5]
[343912079,1733052638729,-41482.67055352,0.00027,5]
[343912095,1733052640652,-1409.71554852,0.00027,5]
[343912096,1733052640664,-1518.75,0.00027,5]
[343912111,1733052643776,-64911.10338732,0.00027,5]
[343912119,1733052646440,-310.44,0.0002699,3]
[343912120,1733052646450,-2414.90135892,0.00027,5]
[343912123,1733052646482,-95199.02429309,0.00027,5]
[343912124,1733052646494,-18776.14949134,0.00027,5]
[343912125,1733052646522,-2324.4583295,0.00027,5]
[343912126,1733052646536,-2805.97989003,0.00027,5]
[343912127,1733052646548,-492.98046976,0.00027,5]
[343912129,1733052781853,165.820888,0.00013973,2]
[343912130,1733053441227,165.951179,0.00013973,2]
[343912133,1733053630139,-150.3,0.0002,2]
[343912142,1733053752104,-1018.97083333,0.0002,2]
[343912143,1733053752126,-1169.27083333,0.0002,2]
[343912144,1733053752148,-20.39495,0.00022174,2]
[343912177,1733053838932,-857.6403347,0.0002,2]
[343912209,1733053840694,-311.63049863,0.0002,2]
[343912211,1733053840703,-145.556229,0.00022174,2]
[343912213,1733053840713,-96.094685,0.000249,4]
[343912216,1733053840778,-104.55684025,0.000249,4]
[343912217,1733053840787,-1145.01381131,0.00025,30]
[343912219,1733053840797,-262.294775,0.000256,11]
[343912221,1733053840807,-254.0,0.000265,2]
[343912222,1733053840816,-2266.29851621,0.00026743,2]
[343912223,1733053840828,-603.80883292,0.00026778,3]
[343912224,1733053840837,-1390.17563006,0.000269,2]
[343912225,1733053840850,-502.433,0.00026936,15]
[343912226,1733053840861,-244.005,0.0002699,2]
[343912227,1733053840964,-555.321,0.0002699,2]
[343912228,1733053840975,-2174.0,0.0002699,2]
[343912229,1733053840984,-2377.0,0.0002699,2]
[343912230,1733053840993,-150.338,0.0002699,2]
[343912231,1733053841002,-187.02,0.0002699,3]
[343912232,1733053841012,-561.06,0.0002699,3]
[343912233,1733053841022,-150.3,0.0002699,10]
[343912234,1733053841031,-390.19331259,0.00026999,2]
[343912235,1733053841041,-500.0,0.00026999,2]
[343912236,1733053841051,-500.0,0.00026999,2]
[343912237,1733053841061,-214.91859098,0.00026999,2]
[343912238,1733053841071,-461.91446362,0.00026999,2]
[343912240,1733053841080,-534.07218074,0.00026999,2]
[343912241,1733053841091,-500.0,0.00026999,2]
[343912242,1733053841101,-461.90118041,0.00026999,2]
[343912243,1733053841110,-8845.69233596,0.00027,2]
[343912244,1733053841120,-315.6697075,0.00027,2]
[343912245,1733053841129,-37764.64222394,0.00027,5]
[343912285,1733054039600,1505.0,0.00025999,60]
[343912286,1733054047638,165.951179,0.00013973,2]
[343912297,1733054679754,166.986148,0.00013973,2]
[343912299,1733054793118,-307.67234768,0.000198,2]
[343912302,1733054952103,-1169.27083333,0.0002,2]
[343912303,1733054952128,-125.65136117,0.00023435,2]
[343912304,1733054970098,-1163.8594467,0.0002,2]
[343912331,1733055031900,-1169.27083333,0.0002,2]
[343912334,1733055031911,-41.33478683,0.00023435,2]
[343912335,1733055031920,-302.63687509,0.00025,2]
[343912337,1733055031929,-302.63687508,0.0002525,2]
[343912339,1733055031939,-224.303159,0.00026,2]
[343912342,1733055031950,-150.0,0.000264,2]
[343912344,1733055031960,-516.28955487,0.00026461,2]
[343912347,1733055031979,-4873.59124815,0.00026461,2]
[343912349,1733055031989,-1000.0,0.000265,2]
[343912351,1733055031998,-150.0,0.00026754,2]
[343912353,1733055032008,-300.0,0.00026844,2]
[343912354,1733055032017,-300.0,0.00026844,2]
[343912356,1733055032029,-5389.88080303,0.00026845,2]
[343912358,1733055032040,-5000.0,0.00026896,2]
[343912361,1733055032051,-1216.32572045,0.00026899,2]
[343912363,1733055032061,-1195.46268047,0.000269,2]
[343912365,1733055032073,-8261.45307845,0.000269,2]
[343912370,1733055032121,-32867.60073874,0.000269,2]
[343912372,1733055032131,-603.35848693,0.00026951,2]
[343912374,1733055032142,-500.0,0.00026973,2]
[343912376,1733055032152,-586.52671046,0.00026973,2]
[343912378,1733055032162,-500.0,0.00026973,2]
[343912380,1733055032172,-449.94703105,0.00026988,2]
[343912382,1733055032182,-440.28432749,0.00026988,2]
[343912384,1733055032191,-4422.84616798,0.00026988,2]
[343912386,1733055032200,-224.517,0.0002699,2]
[343912388,1733055032210,-150.0,0.0002699,2]
[343912390,1733055032221,-531.0,0.0002699,2]
[343912392,1733055032231,-2377.0,0.0002699,2]
[343912393,1733055032242,-2174.0,0.0002699,2]
[343912395,1733055032254,-374.04,0.0002699,3]
[343912398,1733055032275,-180.74,0.0002699,10]
[343912400,1733055032291,-150.61,0.0002699,10]
[343912402,1733055032303,-33723.07849126,0.00027,5]
[343912434,1733055038033,-210.44647167,0.000269,2]
[343912435,1733055038043,-1643.13197613,0.000269,2]
[343912436,1733055038053,-21549.88150886,0.00027,5]
[343912437,1733055038065,-29890.10510886,0.00027,5]
[343912466,1733055042948,-753.09,0.0002699,10]
[343912468,1733055042959,-2281.00463289,0.00027,5]
[343912469,1733055043081,-500.0,0.00026973,2]
[343912470,1733055043090,-81288.28692519,0.00027,5]
[343912485,1733055162925,13000.0,0.00016,2]
[343912487,1733055375360,168.021118,0.00013973,2]
[343912503,1733056057787,168.976474,0.00013973,2]
[343912504,1733056146109,-1169.27083333,0.0002,2]
[343912505,1733056146131,-112.75971658,0.00024224,2]
[343912509,1733056169093,-1084.63050178,0.0002,2]
[343912547,1733056231980,-1169.27083333,0.0002,2]
[343912549,1733056231990,-56.21675742,0.00024224,2]
[343912551,1733056232000,-1425.5221502,0.00025762,2]
[343912552,1733056232009,-300.0,0.00025999,2]
[343912553,1733056232018,-300.0,0.00025999,2]
[343912554,1733056232027,-26539.679572,0.00026,30]
[343912556,1733056232036,-1399.20669496,0.000269,2]
[343912557,1733056232045,-1478.81877849,0.000269,2]
[343912559,1733056232054,-502.02133247,0.00026973,2]
[343912560,1733056232064,-404.15600433,0.00026973,2]
[343912561,1733056232075,-95.84399567,0.00026973,2]
[343912562,1733056232084,-506.18118143,0.00026973,2]
[343912563,1733056232094,-275.58290779,0.00026973,2]
[343912564,1733056232103,-500.71588841,0.00026973,2]
[343912565,1733056232112,-158.09846819,0.00026973,2]
[343912566,1733056232121,-160.2348049,0.00026973,2]
[343912567,1733056232131,-500.0,0.00026973,2]
[343912568,1733056232140,-500.0,0.00026973,2]
[343912569,1733056232150,-531.0,0.00026989,2]
[343912570,1733056232159,-2377.0,0.00026989,2]
[343912571,1733056232168,-2174.0,0.00026989,2]
[343912572,1733056232177,-1451.01710601,0.00026998,2]
[343912573,1733056232188,-1946.52,0.00026998,2]
[343912574,1733056232293,-1602.46289399,0.00026998,2]
[343912575,1733056232303,-303.17088809,0.00026998,2]
[343912576,1733056232312,-265.3796996,0.00026999,2]
[343912577,1733056232322,-500.0,0.00026999,2]
[343912578,1733056232331,-500.0,0.00026999,2]
[343912579,1733056232341,-500.0,0.00026999,2]
[343912580,1733056232350,-540.29659321,0.00026999,2]
[343912581,1733056232359,-187.61168031,0.00026999,2]
[343912582,1733056232368,-281.05258485,0.00026999,2]
[343912583,1733056232378,-1038.59190322,0.00026999,2]
[343912584,1733056232390,-300.0,0.00026999,2]
[343912593,1733056238096,-150.0,0.00026989,2]
[343912594,1733056238106,-85.08889305,0.00026999,2]
[343912595,1733056238115,-2211.42308399,0.00027,2]
[343912596,1733056238125,-2345.98654796,0.00027,5]
[343912597,1733056238137,-6632.872209,0.00027,5]
[343912612,1733056239979,-5349.0,0.00027,5]
[343912633,1733056243181,-4237.63560885,0.00027,5]
[343912634,1733056243192,-1491.53113598,0.00027,5]
[343912635,1733056243203,-5051.56282735,0.00027,5]
[343912636,1733056243292,-203645.9776418,0.00027,5]
[343912637,1733056243302,-150.49,0.00027,2]
[343912638,1733056243312,-911552.2,0.00027,5]
[343912639,1733056243323,-333690.42,0.00027,2]
[343912640,1733056243333,-3933.71,0.00027,2]
[343912641,1733056243345,-1100.0,0.00027,120]
[343912642,1733056243355,-2122.66184151,0.00027,5]
[343912645,1733056243364,-4001.01,0.00027,2]
[343912646,1733056243373,-151.0,0.00027,20]
[343912647,1733056243382,-151.0,0.00027,7]
[343912648,1733056243402,-254.287831,0.00027,7]
[343912649,1733056243412,-156.230486,0.00027,7]
[343912650,1733056243422,-151.0,0.00027,7]
[343912651,1733056243431,-151.49418,0.00027,7]
[343912652,1733056243441,-151.0,0.00027,7]
[343912653,1733056243451,-200.909093,0.00027,7]
[343912654,1733056243460,-154.416648,0.00027,17]
[343912655,1733056243470,-278.338777,0.00027,7]
[343912656,1733056243479,-278.338777,0.00027,7]
[343912657,1733056243490,-155.110843,0.00027,7]
[343912658,1733056243500,-151.0,0.00027,16]
[343912659,1733056243509,-150.0,0.00027,2]
[343912660,1733056243519,-150.305819,0.00027,2]
[343912661,1733056243529,-617.0,0.00027,2]
[343912662,1733056243539,-309.0258,0.00027,2]
[343912663,1733056243549,-160.0,0.00027203,3]
[343912664,1733056243559,-1478.81877843,0.00027285,2]
[343912665,1733056243569,-8441.79175331,0.00027297,21]
[343912666,1733056243578,-666.0,0.00027297,2]
[343912667,1733056243588,-500.0,0.00027373,2]
[343912668,1733056243598,-500.47199785,0.00027373,2]
[343912669,1733056243608,-500.61610407,0.00027373,2]
[343912670,1733056243618,-500.49187378,0.00027373,2]
[343912671,1733056243627,-500.0,0.00027373,2]
[343912672,1733056243637,-151.12032629,0.00027373,2]
[343912673,1733056243646,-500.0,0.00027373,2]
[343912674,1733056243657,-158.5,0.00027373,2]
[343912675,1733056243666,-502.73552203,0.00027373,2]
[343912676,1733056243676,-160.25293066,0.00027373,2]
[343912677,1733056243686,-516.07790882,0.00027373,2]
[343912678,1733056243695,-1399.20669491,0.00027395,2]
[343912679,1733056243705,-151.0,0.00027397,7]
[343912680,1733056243715,-151.0,0.00027397,7]
[343912681,1733056243724,-151.0,0.00027397,7]
[343912682,1733056243734,-151.0,0.00027397,7]
[343912683,1733056243743,-151.0,0.00027397,7]
[343912684,1733056243753,-151.0,0.00027397,7]
[343912685,1733056243762,-500.0,0.00027397,3]
[343912686,1733056243772,-500.0,0.00027397,3]
[343912687,1733056243782,-500.0,0.00027397,3]
[343912688,1733056243792,-507.3266573,0.00027397,3]
[343912689,1733056243801,-483.53915204,0.00027397,3]
[343912690,1733056243811,-1112.22,0.00027397,3]
[343912691,1733056243820,-500.0,0.00027397,3]
[343912692,1733056243830,-500.0,0.00027397,3]
[343912693,1733056243840,-501.70695422,0.00027397,3]
[343912694,1733056243850,-151.0,0.00027397,7]
[343912695,1733056243864,-178.854557,0.00027397,7]
[343912696,1733056243874,-500.0,0.00027397,3]
[343912697,1733056243883,-500.0,0.00027397,3]
[343912698,1733056243894,-500.0,0.00027397,3]
[343912699,1733056243910,-500.0,0.00027397,3]
[343912700,1733056243920,-500.0,0.00027397,3]
[343912701,1733056243931,-500.0,0.00027397,3]
[343912702,1733056243942,-501.95280765,0.00027397,3]
[343912703,1733056243952,-555.86131049,0.00027397,3]
[343912704,1733056243962,-500.0,0.00027397,3]
[343912705,1733056243972,-500.0,0.00027397,3]
[343912706,1733056243981,-151.0,0.00027397,7]
[343912707,1733056243990,-151.0,0.00027397,7]
[343912708,1733056244000,-151.0,0.00027397,7]
[343912709,1733056244010,-151.0,0.00027397,7]
[343912710,1733056244019,-151.0,0.00027397,7]
[343912711,1733056244029,-151.0,0.00027397,7]
[343912712,1733056244039,-500.0,0.00027397,3]
[343912713,1733056244049,-187.277677,0.00027397,7]
[343912714,1733056244058,-422.55967676,0.00027397,3]
[343912715,1733056244068,-500.0,0.00027397,3]
[343912716,1733056244078,-500.0,0.00027397,3]
[343912717,1733056244088,-500.0,0.00027397,3]
[343912718,1733056244098,-506.11156249,0.00027397,3]
[343912719,1733056244107,-500.0,0.00027397,3]
[343912720,1733056244117,-500.0,0.00027397,3]
[343912721,1733056244126,-210.50286783,0.00027397,3]
[343912722,1733056244136,-504.39944899,0.00027397,3]
[343912723,1733056244146,-500.0,0.00027397,3]